{"text_format":"2","workbook":"xlsx","n_sheets":4,"sheets":["Záradék","Összesítő","Vizesblokk kialakítása","Munka3"],"not_rendered":{"charts":0,"images":0,"macros":0,"external_links":0,"defined_names":0,"comments":0,"pivot_tables":0},"unopened":[],"bounds":{"document_bytes":16777216,"sheet_cells":100000,"run_cost":"one","rows_first":2000,"rows_last":500,"rows_between":2000,"halvings":0,"cell_chars":16384,"cell_head_chars":4096},"cells_cut":0,"cells_raw":0,"read":"whole","date_system":"1900"}

{"sheet":"Záradék","index":0,"n_rows":16,"n_cols":4,"rows_kept":16,"cut":false,"hidden":false,"merged":[[11,2,11,3],[15,1,15,2],[5,0,5,3],[9,2,9,3],[10,2,10,3]]}
["                                                                              "]
["          Munka leírása:                                                                     "]
[]
["                                                                              "]
[]
["Költségvetés főösszesítő"]
["Megnevezés",null,"Anyagköltség","Díjköltség"]
["1. Építmény közvetlen költségei",null,{"$f":"ROUND(SUM(Összesítő!B2:B2),0)","v":0},{"$f":"ROUND(SUM(Összesítő!C2:C2),0)","v":0}]
["1.1 Közvetlen önköltség összesen",null,{"$f":"ROUND(C8,0)","v":0},{"$f":"ROUND(D8,0)","v":0}]
["2.1 ÁFA vetítési alap",null,{"$f":"ROUND(C9+D9,0)","v":0}]
["2.2 Áfa",0.27,{"$f":"ROUND(C10*B11,0)","v":0}]
["3.  A munka ára",null,{"$f":"ROUND(C10+C11,0)","v":0}]
[]
[]
[]
[null,"Aláírás"]

{"sheet":"Összesítő","index":1,"n_rows":3,"n_cols":3,"rows_kept":3,"cut":false,"hidden":false,"merged":[]}
["Munkanem megnevezése","Anyag összege","Díj összege"]
["Épületgépészeti szerelvények és berendezések szerelése",{"$f":"'Vizesblokk kialakítása'!G24","v":0},{"$f":"'Vizesblokk kialakítása'!H24","v":0}]
["Összesen:",{"$f":"ROUND(SUM(B2:B2),0)","v":0},{"$f":"ROUND(SUM(C2:C2), 0)","v":0}]

{"sheet":"Vizesblokk kialakítása","index":2,"n_rows":24,"n_cols":8,"rows_kept":24,"cut":false,"hidden":false,"merged":[]}
["Ssz.","Tétel szövege","Menny.","Egység","Anyag egységár","Díj egységre","Anyag összesen","Díj összesen"]
[1,"Kludi Standard álló mosogató csaptelep 31 656 0515 - KL-316560515",5,"db",0,0,{"$f":"ROUND(C2*E2, 0)","v":0},{"$f":"ROUND(C2*F2, 0)","v":0}]
[]
[2,"Kludi Standard álló mosogató csaptelep, lábonálló ipari mosogatóhoz",1,"db",0,0,{"$f":"ROUND(C4*E4, 0)","v":0},{"$f":"ROUND(C4*F4, 0)","v":0}]
[]
[3,"STYRON egymedencés mosogató csőszifon, leeresztőszeleppel",5,"db",0,0,0,0]
[]
[4,"Styron STY-539-2 Mosogató szifon, Kétmedencés, leeresztőszeleppel",1,"db",0,0,0,0]
[]
[5,"Mosogatógép bekötése a meglévő víz szennyvíz cstlakozásra",1,"db",0,0,0,0]
[]
[6,"Vizsgáló fülke bútoraiba épített mosogatóinak víz csatorna kiállás kiépítése",5,"db",0,0,0,0]
[]
[7,"Rákötés a meglévő szennyvízhálózatra",2,"db",0,0,0,0]
[]
[8,"Rákötés a meglévő vízhálózatra",2,"db",0,0,0,0]
[]
[9,"Szennyvízvezeték KG PVC cső szerelése(f110) idomokkal",9,"m",0,0,0,0]
[]
[11,"Bosch Tronic 2000T 15T mini elektromos vízmelegítő alsó elhelyezésű (ES 015 5 1500W BO M1R-KNWVT), elektromos bekötéssel",1,"db",0,0,0,0]
[]
[12,"Vízmintavételi jegyzőkönyv",1,"db",0,0,0,0]
[]
[null,"Munkanem összesen:",{"$nulls":4},{"$f":"SUM(G2:G22)","v":0},{"$f":"SUM(H2:H22)","v":0}]

{"sheet":"Munka3","index":3,"n_rows":0,"n_cols":0,"rows_kept":0,"cut":false,"hidden":false,"merged":[]}